bitfinex-derivatives/quotes_SOLF0:USTF0_20241211
["timestamp","ask_amount","ask_price","bid_price","bid_amount"]
[1733890042936,7.03407335,219.24,219.19,2.4]
[1733890043140,7.03407335,219.2,219.19,2.4]
[1733890043340,7.03407335,219.22,219.19,2.4]
[1733890043839,7.03407335,219.22,219.19,4.6803]
[1733890044238,1.4706,219.31,219.19,2.4]
[1733890044442,7.03407335,219.25,219.19,2.4]
[1733890046138,7.03407335,219.25,219.23,2.2798]
[1733890049141,7.03407335,219.25,219.19,2.4]
[1733890049343,7.03407335,219.23,219.21,2.2801]
[1733890049640,7.03407335,219.23,219.21,2.4]
[1733890051139,2.4,219.29,219.21,2.4]
[1733890051341,1.4706,219.31,219.26,2.2795]
[1733890051643,7.03407335,219.29,219.26,2.4]
[1733890052042,1.4787,219.34,219.26,2.4]
[1733890052249,2.4,219.28,219.26,2.4]
[1733890052737,2.4,219.28,219.27,2.2794]
[1733890053547,10.98193972,219.35,219.31,2.279]
[1733890054736,10.98193972,219.35,219.3,2.2791]
[1733890055142,10.98193972,219.35,219.26,2.4]
[1733890055343,10.98193972,219.35,219.31,2.279]
[1733890055744,10.98193972,219.35,219.26,2.4]
[1733890057247,2.2787,219.34,219.27,2.2794]
[1733890057443,1.3876,219.34,219.26,2.4]
[1733890058339,10.98193972,219.32,219.26,2.4]
[1733890059640,10.98193972,219.32,219.27,2.2794]
[1733890059836,10.98193972,219.32,219.26,2.4]
[1733890060744,13.26093972,219.32,219.26,2.4]
[1733890060952,10.98193972,219.32,219.18,13.78993972]
[1733890061154,10.98193972,219.29,219.19,2.4]
[1733890062259,10.98193972,219.29,219.24,2.2797]
[1733890062460,10.98193972,219.29,219.24,4.6797]
[1733890062660,10.98193972,219.29,219.24,2.4]
[1733890063162,10.98193972,219.32,219.27,2.2794]
[1733890063360,12.6236042,219.31,219.26,2.4]
[1733890063554,12.36953972,219.34,219.26,2.4]
[1733890063761,12.62330149,219.33,219.26,2.4]
[1733890063962,12.36953972,219.34,219.26,2.4]
[1733890064669,12.36953972,219.34,219.29,2.2792]
[1733890065658,13.26093972,219.31,219.25,2.4]
[1733890066366,13.26093972,219.31,219.25,4.6797]
[1733890066661,10.98193972,219.31,219.25,2.2797]
[1733890066860,2.2792,219.3,219.25,2.2797]
[1733890067666,10.98193972,219.31,219.24,2.4]
[1733890067965,2.2792,219.29,219.24,2.4]
[1733890068357,2.2796,219.26,219.2,2.2802]
[1733890068557,10.98193972,219.28,219.21,2.4]
[1733890069361,13.26133972,219.28,219.22,2.2799]
[1733890070260,13.26133972,219.28,219.23,2.2798]
[1733890071568,10.98193972,219.28,219.2,2.4]
[1733890071866,1.4739,219.3,219.2,2.4]
[1733890072665,1.4739,219.3,219.25,2.2796]
[1733890072866,1.4739,219.3,219.26,2.4]
[1733890074069,3.7531,219.3,219.26,2.4]
[1733890074270,3.7531,219.3,219.17,5.54933987]
[1733890074468,1.4739,219.3,219.23,2.2798]
[1733890074673,2.2793,219.29,219.24,2.4]
[1733890075573,13.26133972,219.28,219.24,2.4]
[1733890077576,10.98193972,219.28,219.21,2.4]
[1733890077767,12.62807008,219.27,219.21,2.4]
[1733890077969,10.98193972,219.28,219.21,2.4]
[1733890078174,12.62806926,219.27,219.19,2.4]
[1733890078370,1.4533,219.27,219.19,2.4]
[1733890079273,12.63072056,219.26,219.13,10.98193972]
[1733890079477,23.61317339,219.25,219.15,5.43071442]
[1733890079780,10.98193972,219.22,219.11,47.42]
[1733890079975,10.98193972,219.18,219.05,1.3718]
[1733890080176,10.98193972,219.18,219.09,2.4]
[1733890080478,10.98193972,219.18,219.1,2.4]
[1733890080876,13.26243972,219.18,219.11,2.281]
[1733890081071,13.26243972,219.18,219.1,2.4]
[1733890081786,13.26243972,219.18,219.12,2.281]
[1733890082480,10.98193972,219.18,219.13,2.2809]
[1733890083179,10.98193972,219.18,219.11,2.4]
[1733890083379,1.4533,219.19,219.11,2.4]
[1733890083585,1.3884,219.2,219.11,2.4]
[1733890083788,10.98193972,219.24,219.18,2.2804]
[1733890083976,12.62116164,219.23,219.18,2.2804]
[1733890084181,10.98193972,219.24,219.18,2.2804]
[1733890084586,2.2799,219.23,219.18,2.2804]
[1733890087485,12.34093972,219.24,219.18,2.2804]
[1733890087686,2.28,219.22,219.18,2.2804]
[1733890088383,14.62083972,219.24,219.18,2.2804]
[1733890088683,14.62083972,219.24,219.21,2.2801]
[1733890088684,12.34093972,219.24,219.21,2.2801]
[1733890089387,10.98193972,219.24,219.21,2.2801]
[1733890090479,10.98193972,219.24,219.2,2.2802]
[1733890091594,10.98193972,219.24,219.21,2.2801]
[1733890092089,1.4516,219.25,219.21,2.4]
[1733890092285,10.98193972,219.27,219.21,2.4]
[1733890093382,2.2797,219.25,219.21,2.4]
[1733890093582,10.98193972,219.27,219.21,2.4]
[1733890093784,13.26173972,219.24,219.2,2.4]
[1733890093991,10.98193972,219.24,219.2,2.4]
[1733890094589,13.26143972,219.27,219.21,2.2801]
[1733890095087,13.26143972,219.27,219.22,2.2799]
[1733890095392,10.98193972,219.27,219.2,2.4]
[1733890096988,2.2796,219.26,219.22,2.28]
[1733890097486,10.98193972,219.27,219.11,0.4944]
[1733890097689,2.2798,219.24,219.19,2.2802]
[1733890097885,2.2798,219.24,219.19,4.6802]
[1733890098191,13.26173972,219.24,219.19,4.6802]
[1733890098891,13.26173972,219.24,219.19,2.2802]
[1733890099192,13.26173972,219.24,219.19,4.6802]
[1733890099590,13.26173972,219.24,219.19,2.2802]
[1733890099891,10.98193972,219.24,219.19,2.2802]
[1733890100189,10.98193972,219.24,219.18,2.4]
[1733890100389,1.3491,219.23,219.1,16.53646982]
[1733890100586,2.2802,219.2,219.1,5.5545301]
[1733890100787,2.2802,219.2,219.11,2.4]
[1733890101683,2.2802,219.2,219.14,2.2807]
[1733890101887,2.2803,219.19,219.14,2.4]
[1733890103092,13.26233972,219.18,219.14,2.4]
[1733890103684,10.98193972,219.18,219.1,5.5545301]
[1733890103986,10.98193972,219.18,219.1,7.9545301]
[1733890104185,10.98193972,219.18,219.1,2.4]
[1733890104486,10.98193972,219.15,219.07,2.4]
[1733890104693,1.3359,219.14,219.07,2.4]
[1733890104991,2.281,219.12,219.04,2.2817]
[1733890105297,2.281,219.12,219.07,2.4]
[1733890105493,13.26293972,219.12,219.07,2.4]
[1733890106392,13.26333972,219.09,219.05,2.4]
[1733890110593,2.2815,219.08,219.02,2.282]
[1733890110800,10.98193972,219.06,219.01,2.4]
[1733890111394,10.98193972,219.03,218.92,1.4504]
[1733890111599,10.98193972,219.03,218.93,2.4]
[1733890111898,2.2823,219.0,218.94,2.2829]
[1733890112101,10.98193972,219.0,218.94,2.2829]
[1733890112802,13.26423972,219.0,218.94,2.2829]
[1733890113494,10.98193972,219.0,218.94,2.2829]
[1733890113896,10.98193972,219.0,218.93,7.93051957]
[1733890114095,10.98193972,219.03,218.93,7.93051957]
[1733890115000,10.98193972,219.03,218.98,2.2824]
[1733890115204,10.98193972,219.03,218.98,4.6824]
[1733890115797,10.98193972,219.03,218.98,2.2824]
[1733890116699,10.98193972,219.0,218.96,2.4]
[1733890117204,13.26433972,219.0,218.9,2.2833]
[1733890117507,10.98193972,218.97,218.91,2.4]
[1733890119103,10.98193972,219.0,218.91,2.4]
[1733890119406,1.4304,219.02,218.91,2.4]
[1733890120304,10.98193972,219.0,218.91,2.4]
[1733890120903,1.4304,219.02,218.92,2.4]
[1733890120904,10.98193972,218.97,218.92,2.4]
[1733890121100,10.98193972,218.97,218.88,5.35232849]
[1733890121308,2.2827,218.96,218.9,2.2833]
[1733890121503,10.98193972,218.97,218.89,2.4]
[1733890121708,1.3392,218.96,218.89,2.4]
[1733890122199,10.98193972,218.94,218.89,2.4]
[1733890122608,13.26483972,218.94,218.89,2.4]
[1733890122801,10.98193972,218.94,218.79,53.80683069]
[1733890123109,10.98193972,218.91,218.85,2.4]
[1733890123499,10.98193972,218.91,218.79,42.82489097]
[1733890123703,10.98193972,218.88,218.8,2.4]
[1733890123909,10.98193972,218.85,218.76,2.4]
[1733890124104,10.98193972,218.85,218.71,58.46193972]
[1733890124501,10.98193972,218.82,218.71,47.48]
[1733890124708,10.98193972,218.82,218.76,7.88125384]
[1733890125103,1.474,218.84,218.77,2.4]
[1733890125307,1.474,218.84,218.76,5.59655384]
[1733890125611,10.98193972,218.82,218.76,7.99655384]
[1733890125810,10.98193972,218.79,218.72,2.4]
[1733890126509,10.98193972,218.79,218.72,7.87889605]
[1733890126910,10.98193972,218.79,218.74,2.2849]
[1733890127112,10.98193972,218.79,218.72,7.87889605]
[1733890128103,10.98193972,218.79,218.72,5.47889605]
[1733890128802,10.98193972,218.79,218.74,2.285]
[1733890129611,10.98193972,218.79,218.72,5.47889605]
[1733890129815,10.98193972,218.82,218.72,5.47889605]
[1733890130012,1.474,218.84,218.73,10.98193972]
[1733890130206,10.98193972,218.88,218.73,10.98193972]
[1733890130511,10.98193972,218.88,218.73,11.48083972]
[1733890130711,10.98193972,218.88,218.77,2.2846]
[1733890130907,10.98193972,218.88,218.78,2.4]
[1733890131303,10.98193972,218.88,218.85,2.2838]
[1733890131509,10.98193972,218.88,218.85,4.6838]
[1733890131813,10.98193972,218.88,218.85,2.4]
[1733890132517,10.98193972,218.88,218.51,4.5748]
[1733890132518,2.4,218.87,218.51,4.5748]
[1733890132817,10.98193972,218.78,218.7,5.56225159]
[1733890133018,10.98193972,218.78,218.7,7.96225159]
[1733890133210,10.98193972,218.78,218.73,2.2851]
[1733890133514,10.98193972,218.78,218.7,7.96225159]
[1733890134017,10.98193972,218.78,218.73,2.285]
[1733890134620,10.98193972,218.78,218.73,4.685]
[1733890135416,10.98193972,218.81,218.73,2.4]
[1733890135822,13.26623972,218.81,218.73,2.4]
[1733890136214,10.98193972,218.81,218.73,2.4]
[1733890137012,2.2845,218.79,218.73,2.4]
[1733890137221,10.98193972,218.81,218.7,5.56225159]
[1733890137419,10.98193972,218.75,218.7,2.4]
[1733890138421,10.98193972,218.75,218.69,5.54860968]
[1733890138815,10.98193972,218.75,218.69,7.83410968]
[1733890139519,10.98193972,218.75,218.69,7.94860968]
[1733890139520,13.26683972,218.75,218.69,7.94860968]
[1733890139919,10.98193972,218.75,218.69,7.94860968]
[1733890140117,2.6877,218.8,218.69,7.94860968]
[1733890140118,10.98193972,218.78,218.69,7.94860968]
[1733890140717,10.98193972,218.78,218.73,2.2851]
[1733890141325,10.98193972,218.78,218.73,2.285]
[1733890142421,1.4672,218.8,218.69,2.4]
[1733890142620,1.4672,218.8,218.68,2.2855]
[1733890142621,10.98193972,218.75,218.68,2.2855]
[1733890142827,10.98193972,218.75,218.66,2.4]
[1733890143031,2.4,218.78,218.66,2.4]
[1733890143032,10.98193972,218.72,218.66,2.4]
[1733890143219,10.98193972,218.72,218.64,0.19811]
[1733890143421,2.2854,218.7,218.64,0.19811]
[1733890143927,2.2853,218.71,218.65,2.2859]
[1733890144124,10.98193972,218.72,218.64,0.19811]
[1733890145227,10.98193972,218.72,218.66,2.2858]
[1733890145420,10.98193972,218.72,218.64,0.19811]
[1733890145820,10.98193972,218.72,218.66,2.2858]
[1733890146028,10.98193972,218.72,218.64,0.19811]
[1733890146424,10.98193972,218.75,218.64,0.19811]
[1733890146932,10.98193972,218.78,218.65,10.98193972]
[1733890148025,2.9353,218.8,218.75,2.2848]
[1733890148224,1.4672,218.8,218.76,2.4]
[1733890148427,10.98193972,218.81,218.76,2.4]
[1733890148637,10.98193972,218.84,218.76,2.4]
[1733890149028,13.26583972,218.84,218.78,2.2845]
[1733890149334,2.2839,218.84,218.78,2.2845]
[1733890149930,21.32254543,218.86,218.78,2.2845]
[1733890150126,19.03874543,218.86,218.79,2.2843]
[1733890150334,19.03874543,218.86,218.76,2.4]
[1733890150833,19.03874543,218.86,218.79,2.2844]
[1733890151441,19.03874543,218.86,218.82,2.2841]
[1733890151633,19.03874543,218.86,218.82,2.4]
[1733890152636,2.6765,218.89,218.82,2.4]
[1733890153638,2.6765,218.89,218.83,2.284]
[1733890154342,2.6765,218.89,218.84,2.2839]
[1733890154943,2.6765,218.89,218.85,2.4]
[1733890155941,4.96,218.89,218.85,2.4]
[1733890157734,2.2835,218.88,218.82,2.2841]
[1733890157936,2.6765,218.89,218.81,2.4]
[1733890159442,2.2837,218.86,218.81,2.4]
[1733890159941,2.2837,218.86,218.8,4.6843]
[1733890160735,2.2837,218.86,218.8,2.4]
[1733890161035,2.2837,218.86,218.81,2.2842]
[1733890161240,2.2838,218.85,218.81,2.2842]
[1733890162340,17.65304543,218.86,218.79,2.4]
[1733890162541,17.65304543,218.86,218.65,2.8404]
[1733890162739,12.58668674,218.85,218.7,2.4]
[1733890163039,12.58715922,218.84,218.65,2.8404]
[1733890163241,12.58832282,218.83,218.66,2.4]
[1733890163541,2.2845,218.79,218.66,2.4]
[1733890163739,1.3692,218.84,218.66,2.4]
[1733890163947,1.3692,218.84,218.65,20.49344543]
[1733890163948,17.65304543,218.82,218.65,2.8404]
[1733890164246,16.37105283,218.81,218.67,2.4]
[1733890164441,12.59295283,218.8,218.67,2.4]
[1733890164642,14.06465283,218.8,218.67,2.4]
[1733890164840,2.2849,218.76,218.7,2.2854]
[1733890165043,1.4717,218.8,218.68,2.4]
[1733890165240,17.65304543,218.78,218.64,42.84781117]
[1733890165439,17.65304543,218.78,218.52,2.28812008]
[1733890165440,2.2852,218.72,218.52,2.28812008]
[1733890165640,2.8498,218.71,218.53,20.05304543]
[1733890165856,12.61364823,218.7,218.53,20.05304543]
[1733890166148,2.2856,218.69,218.53,20.05304543]
[1733890166343,17.65304543,218.7,218.53,20.05304543]
[1733890166548,17.65304543,218.7,218.62,5.50020057]
[1733890166942,12.61560689,218.69,218.62,5.50020057]
[1733890167143,2.2856,218.68,218.62,7.78640057]
[1733890167341,2.2856,218.68,218.62,2.2862]
[1733890168445,2.2857,218.67,218.6,2.4]
[1733890168650,17.65304543,218.7,218.6,2.4]
[1733890168845,2.2859,218.65,218.6,2.4]
[1733890170446,17.65304543,218.66,218.54,2.4]
[1733890170642,20.05304543,218.66,218.54,2.4]
[1733890171047,2.2862,218.63,218.57,2.2867]
[1733890171248,11.05317522,218.65,218.55,5.38853522]
[1733890172053,13.45317522,218.68,218.55,5.38853522]
[1733890172350,2.2857,218.67,218.61,2.2863]
[1733890172747,2.2858,218.66,218.59,2.2865]
[1733890172952,2.2858,218.66,218.56,2.4]
[1733890173659,11.05317522,218.68,218.56,2.4]
[1733890174654,11.05317522,218.68,218.61,2.2863]
[1733890174853,11.05317522,218.68,218.61,4.6863]
[1733890175451,15.33567522,218.71,218.61,2.4]
[1733890175650,17.62097522,218.71,218.61,2.4]
[1733890175847,15.33567522,218.71,218.61,2.4]
[1733890176555,15.33567522,218.71,218.63,2.286]
[1733890176556,2.2854,218.7,218.63,2.286]
[1733890176754,2.2854,218.7,218.61,2.4]
[1733890176960,11.05317522,218.68,218.61,2.4]
[1733890177551,11.05317522,218.65,218.61,2.4]
[1733890177956,11.05317522,218.65,218.55,5.38853522]
[1733890178157,11.05317522,218.65,218.56,2.4]
[1733890178965,11.05317522,218.62,218.55,5.38853522]
[1733890179165,11.05317522,218.62,218.55,7.78853522]
[1733890179656,11.05317522,218.62,218.53,2.4]
[1733890179863,11.05317522,218.59,218.53,2.4]
[1733890180057,2.2867,218.58,218.53,2.4]
[1733890180255,11.05317522,218.59,218.51,2.4]
[1733890180454,11.05317522,218.59,218.5,5.8683063]
[1733890180649,11.05317522,218.56,218.5,5.8683063]
[1733890180861,11.05317522,218.56,218.5,0.24894]
[1733890182559,11.05317522,218.56,218.51,2.2873]
[1733890182860,11.05317522,218.56,218.5,0.24894]
[1733890183255,11.05317522,218.56,218.49,2.4]
[1733890183561,11.05317522,218.56,218.5,2.2875]
[1733890184162,2.287,218.55,218.49,2.4]
[1733890184463,5.51347754,218.6,218.46,2.4]
[1733890184464,11.05317522,218.53,218.46,2.4]
[1733890185158,11.05317522,218.53,218.45,2.4]
[1733890185365,11.05317522,218.5,218.45,2.4]
[1733890185861,11.05317522,218.5,218.42,4.6883]
[1733890185862,2.2876,218.49,218.42,4.6883]
[1733890186062,11.05317522,218.5,218.42,2.4]
[1733890187165,11.05317522,218.5,218.43,2.4]
[1733890187365,2.8359,218.51,218.43,2.4]
[1733890187561,11.05317522,218.53,218.43,2.4]
[1733890187764,2.4,218.59,218.43,13.45317522]
[1733890187765,11.05317522,218.56,218.43,13.45317522]
[1733890188461,15.26097522,218.59,218.46,11.05317522]
[1733890188860,17.54747522,218.59,218.52,2.2872]
[1733890189061,15.26097522,218.59,218.53,2.4]
[1733890189367,15.26097522,218.59,218.54,2.4]
[1733890189662,17.54747522,218.59,218.54,2.4]
[1733890190857,15.26097522,218.59,218.54,2.4]
[1733890191067,15.26097522,218.59,218.54,4.687]
[1733890191266,15.26097522,218.59,218.54,2.4]
[1733890191563,2.4,218.65,218.54,2.4]
[1733890191564,13.33937522,218.62,218.54,2.4]
[1733890192362,13.33937522,218.62,218.56,2.2868]
[1733890193462,4.2314,218.64,218.54,2.4]
[1733890194565,4.2314,218.64,218.58,2.2866]
[1733890194762,11.05317522,218.59,218.45,2.4]
[1733890194962,11.05317522,218.54,218.45,2.4]
[1733890195169,11.05317522,218.57,218.47,2.2877]
[1733890195365,11.05317522,218.57,218.45,2.4]
[1733890196166,11.05317522,218.57,218.5,2.2874]
[1733890196365,11.05317522,218.57,218.51,2.4]
[1733890196767,11.05317522,218.6,218.52,2.2873]
[1733890198264,11.05317522,218.6,218.51,2.4]
[1733890198471,11.05317522,218.57,218.51,2.4]
[1733890199464,2.2869,218.56,218.51,2.4]
[1733890199768,11.05317522,218.6,218.51,2.4]
[1733890200066,11.05317522,218.6,218.54,2.287]
[1733890200266,11.05317522,218.6,218.51,2.4]
[1733890201164,13.33967522,218.6,218.53,2.2871]
[1733890201571,11.05317522,218.6,218.54,2.4]
[1733890201969,2.2867,218.58,218.54,2.4]
[1733890202170,11.05317522,218.6,218.5,2.2874]
[1733890202464,11.05317522,218.57,218.51,2.4]
[1733890202767,2.287,218.55,218.5,2.4]
[1733890203068,2.287,218.55,218.49,4.6876]
[1733890203268,11.05317522,218.57,218.49,2.4]
[1733890203574,11.05317522,218.6,218.49,2.4]
[1733890203970,13.33967522,218.6,218.49,2.4]
[1733890204176,13.33967522,218.6,218.49,13.45317522]
[1733890204567,11.05317522,218.63,218.49,13.45317522]
[1733890204871,11.05317522,218.63,218.5,1.4371]
[1733890205274,11.05317522,218.63,218.52,11.05317522]
[1733890205471,11.05317522,218.66,218.52,11.05317522]
[1733890205778,11.05317522,218.69,218.63,2.286]
[1733890205978,11.05317522,218.72,218.64,2.4]
[1733890206168,12.58712968,218.71,218.64,2.4]
[1733890206370,11.05317522,218.72,218.66,2.2858]
[1733890206575,11.05317522,218.72,218.64,2.4]
[1733890206976,2.2854,218.7,218.61,2.2863]
[1733890207176,11.05317522,218.72,218.62,2.4]
[1733890207675,2.2851,218.74,218.66,2.2858]
[1733890207876,2.2851,218.74,218.67,2.4]
[1733890208277,2.285,218.74,218.67,4.6856]
[1733890208980,11.05317522,218.76,218.67,2.4]
[1733890209176,12.60800082,218.75,218.68,2.2856]
[1733890209377,13.33807522,218.76,218.68,2.2856]
[1733890209575,12.60799713,218.75,218.68,2.2856]
[1733890209778,11.05317522,218.76,218.67,2.4]
[1733890210077,11.05317522,218.76,218.61,11.05317522]
[1733890210078,12.60798717,218.75,218.68,2.4]
[1733890210286,11.05317522,218.76,218.69,2.4]
[1733890210483,11.05317522,218.76,218.7,2.4]
[1733890210484,14.89543058,218.75,218.7,2.4]
[1733890210787,12.61077745,218.74,218.7,2.4]
[1733890210978,11.05317522,218.76,218.7,2.4]
[1733890211283,12.61085467,218.75,218.7,2.4]
[1733890211477,12.61085467,218.74,218.69,2.4]
[1733890211678,11.05317522,218.76,218.69,2.4]
[1733890211886,2.2851,218.73,218.69,2.4]
[1733890212485,2.2852,218.72,218.69,2.4]
[1733890213382,11.05317522,218.73,218.63,5.45779936]
[1733890213584,11.05317522,218.73,218.64,2.4]
[1733890214388,2.2854,218.71,218.64,4.6859]
[1733890214592,11.05317522,218.73,218.64,2.4]
[1733890214790,12.6059497,218.72,218.64,2.4]
[1733890214991,2.2853,218.71,218.66,2.2858]
[1733890215389,11.05317522,218.73,218.64,2.4]
[1733890215591,11.05317522,218.73,218.64,4.6859]
[1733890216389,2.2855,218.7,218.65,2.2859]
[1733890217589,11.05317522,218.73,218.64,2.4]
[1733890217790,13.33837522,218.73,218.64,2.4]
[1733890218389,13.33837522,218.73,218.67,2.2856]
[1733890218897,13.33837522,218.73,218.64,2.4]
[1733890219491,2.2852,218.73,218.64,2.4]
[1733890219801,4.2978,218.78,218.64,2.4]
[1733890220095,12.59715396,218.77,218.66,11.05317522]
[1733890220293,2.8502,218.78,218.66,11.05317522]
[1733890220795,11.05317522,218.82,218.74,2.285]
[1733890220991,2.2844,218.8,218.75,2.4]
[1733890221894,3.65,218.81,218.75,2.4]
[1733890222293,3.65,218.81,218.76,2.2847]
[1733890222495,3.65,218.81,218.75,13.45317522]
[1733890223388,3.65,218.81,218.8,2.2843]
[1733890223596,3.65,218.81,218.8,4.6843]
[1733890223789,3.65,218.81,218.75,11.05317522]
[1733890223992,3.65,218.81,218.76,2.4]
[1733890224491,3.65,218.81,218.75,11.05317522]
[1733890224492,3.65,218.81,218.77,2.4]
[1733890225394,3.65,218.81,218.74,2.285]
[1733890225696,3.65,218.81,218.75,2.4]
[1733890226089,3.65,218.81,218.7,1.3949]
[1733890226292,11.05317522,218.79,218.71,2.4]
[1733890226489,11.05317522,218.79,218.72,2.4]
[1733890226694,11.05317522,218.79,218.73,2.4]
[1733890226994,2.2848,218.77,218.73,2.4]
[1733890227294,11.05317522,218.79,218.73,2.4]
[1733890227494,1.3631,218.78,218.73,2.4]
[1733890227694,2.2849,218.75,218.69,2.2855]
[1733890227894,2.2849,218.75,218.7,2.4]
[1733890228400,1.3631,218.78,218.7,7.78771642]
[1733890228401,2.285,218.74,218.7,7.78771642]
[1733890229295,1.3631,218.78,218.7,7.78771642]
[1733890229296,2.2851,218.73,218.7,2.4]
[1733890229696,2.2849,218.75,218.7,2.4]
[1733890229896,11.05317522,218.76,218.7,2.4]
[1733890230501,11.05317522,218.73,218.6,12.45017522]
[1733890230703,11.05317522,218.7,218.61,2.4]
[1733890230903,11.05317522,218.7,218.62,2.4]
[1733890231106,2.2857,218.67,218.63,2.4]
[1733890231307,11.05317522,218.7,218.57,11.05317522]
[1733890231507,1.3957,218.69,218.59,2.4]
[1733890232203,1.3957,218.69,218.54,12.44907522]
[1733890232408,1.3957,218.69,218.59,2.4]
[1733890233701,1.3957,218.69,218.54,12.44907522]
[1733890234008,1.3957,218.69,218.59,2.4]
[1733890234201,1.3957,218.69,218.6,5.60346885]
[1733890234202,2.2858,218.66,218.6,5.60346885]
[1733890234804,2.2858,218.66,218.6,7.88986885]
[1733890235707,2.2862,218.63,218.59,2.4]
[1733890235913,2.2862,218.63,218.58,2.61962]
[1733890236205,1.3559,218.65,218.58,0.21962]
[1733890236510,2.2862,218.62,218.58,0.21962]
[1733890236712,11.05317522,218.64,218.58,0.21962]
[1733890237210,2.2863,218.62,218.58,0.21962]
[1733890238006,3.65,218.61,218.58,0.21962]
[1733890240508,14.70317522,218.61,218.48,11.05317522]
[1733890240810,2.2868,218.57,218.54,2.4]
[1733890241412,2.2868,218.57,218.51,2.2873]
[1733890241612,2.2868,218.57,218.52,2.4]
[1733890242205,3.66,218.56,218.52,2.4]
[1733890244218,3.66,218.56,218.53,2.2871]
[1733890244614,3.66,218.56,218.52,2.4]
[1733890246313,3.66,218.56,218.51,7.83845714]
[1733890246519,3.66,218.56,218.52,2.4]
[1733890248715,3.66,218.56,218.51,5.55115714]
[1733890248912,3.66,218.56,218.51,7.95115714]
[1733890249309,2.15,218.55,218.51,7.95115714]
[1733890249517,4.437,218.55,218.51,2.4]
[1733890249916,2.15,218.55,218.44,11.05317522]
[1733890250113,2.2872,218.53,218.47,2.2878]
[1733890250318,13.20317522,218.55,218.47,5.57937991]
[1733890250617,2.2872,218.53,218.46,2.2879]
[1733890250822,14.58357522,218.55,218.47,2.4]
[1733890252320,11.05317522,218.52,218.38,11.05317522]
[1733890252528,11.05317522,218.52,218.41,2.2884]
[1733890252820,3.5304,218.55,218.42,2.4]
[1733890252821,11.05317522,218.49,218.42,2.4]
[1733890253119,2.2879,218.47,218.41,2.2884]
[1733890253317,11.05317522,218.49,218.41,2.4]
[1733890253523,11.05317522,218.46,218.4,2.4]
[1733890253725,11.05317522,218.46,218.39,2.4]
[1733890254026,11.05317522,218.46,218.37,2.4]
[1733890254230,1.4759,218.45,218.37,2.4]
[1733890254523,2.2884,218.42,218.37,2.4]
[1733890256028,1.4759,218.45,218.37,2.4]
[1733890257025,2.288,218.46,218.4,2.2885]
[1733890257221,3.66,218.48,218.39,11.05317522]
[1733890257617,3.66,218.48,218.44,2.2881]
[1733890257822,3.66,218.48,218.45,2.4]
[1733890258619,3.66,218.48,218.39,11.05317522]
[1733890258620,3.66,218.48,218.39,2.4]
[1733890259222,3.66,218.48,218.38,1.4458]
[1733890259424,3.66,218.48,218.4,2.4]
[1733890259627,2.2881,218.45,218.4,2.4]
[1733890260025,13.34127522,218.45,218.4,2.4]
[1733890260417,14.71317522,218.48,218.4,2.4]
[1733890260627,3.66,218.48,218.4,2.4]
[1733890261131,3.66,218.48,218.4,13.45317522]
[1733890261629,3.66,218.48,218.43,11.05317522]
[1733890262625,0.95,218.47,218.43,11.05317522]
[1733890263426,0.95,218.47,218.4,2.4]
[1733890263729,0.95,218.47,218.41,2.4]
[1733890264232,3.66,218.46,218.43,2.2882]
[1733890264929,3.66,218.46,218.42,2.2883]
[1733890265631,3.66,218.46,218.43,2.4]
[1733890266233,3.66,218.46,218.43,4.6882]
[1733890266634,3.66,218.46,218.43,2.4]
[1733890266831,3.66,218.46,218.45,2.288]
[1733890270039,3.66,218.46,218.43,2.4]